[Event "Early-Titled-Tuesday-Blitz-May-07-2024"]
[Site "Chess.com"]
[Date "2024.05.07"]
[Round "11"]
[White "Kyrko_Gamba"]
[Black "Ati1517"]
[Result "1/2-1/2"]
[WhiteElo "2493"]
[BlackElo "2293"]
[TimeControl "180+1"]
[EndTime "10:10:30 PDT"]
[Termination "Game drawn by repetition"]

1. d4 {[%clk 0:03:00.9]} 1... Nf6 {[%clk 0:02:58.6]} 2. c4 {[%clk 0:02:59.1]}
2... g6 {[%clk 0:02:58.6]} 3. Nc3 {[%clk 0:02:58.5]} 3... Bg7 {[%clk 0:02:59.5]}
4. e4 {[%clk 0:02:58.7]} 4... d6 {[%clk 0:03:00.3]} 5. Be2 {[%clk 0:02:59]} 5...
O-O {[%clk 0:03:00.9]} 6. Be3 {[%clk 0:02:59.5]} 6... Nbd7 {[%clk 0:02:59.3]} 7.
f3 {[%clk 0:02:51.2]} 7... e5 {[%clk 0:02:58.4]} 8. d5 {[%clk 0:02:51]} 8... a5
{[%clk 0:02:57]} 9. g4 {[%clk 0:02:50.5]} 9... b6 {[%clk 0:02:57.6]} 10. h4
{[%clk 0:02:50.2]} 10... Nc5 {[%clk 0:02:57.9]} 11. h5 {[%clk 0:02:40.8]} 11...
Qd7 {[%clk 0:02:52.1]} 12. Qd2 {[%clk 0:02:38.3]} 12... c6 {[%clk 0:02:50.6]}
13. Bh6 {[%clk 0:02:32.8]} 13... cxd5 {[%clk 0:02:48.9]} 14. Nxd5 {[%clk
0:02:20.8]} 14... Nxd5 {[%clk 0:02:48.3]} 15. Bxg7 {[%clk 0:02:20.2]} 15... Kxg7
{[%clk 0:02:46.3]} 16. hxg6 {[%clk 0:02:16.2]} 16... Nf4 {[%clk 0:02:45.5]} 17.
gxh7 {[%clk 0:02:10.2]} 17... Rh8 {[%clk 0:02:44.1]} 18. O-O-O {[%clk 0:02:03]}
18... Rxh7 {[%clk 0:02:40.3]} 19. Rxh7+ {[%clk 0:02:02.3]} 19... Kxh7 {[%clk
0:02:41.2]} 20. Qxd6 {[%clk 0:02:02]} 20... Qxd6 {[%clk 0:02:39.5]} 21. Rxd6
{[%clk 0:02:02.4]} 21... Be6 {[%clk 0:02:38.7]} 22. Rxb6 {[%clk 0:01:58.8]}
22... Nxe2+ {[%clk 0:02:38.1]} 23. Nxe2 {[%clk 0:01:58.3]} 23... Bxc4 {[%clk
0:02:39]} 24. Ng3 {[%clk 0:01:55]} 24... Nd3+ {[%clk 0:02:34.2]} 25. Kd2 {[%clk
0:01:51.3]} 25... Nb4 {[%clk 0:02:28.4]} 26. Nf5 {[%clk 0:01:50.4]} 26... Bxa2
{[%clk 0:02:23.4]} 27. Rh6+ {[%clk 0:01:49]} 27... Kg8 {[%clk 0:02:22.8]} 28.
Ne7+ {[%clk 0:01:49.5]} 28... Kg7 {[%clk 0:02:22.1]} 29. Nf5+ {[%clk 0:01:48.5]}
29... Kg8 {[%clk 0:02:20.4]} 30. Ne7+ {[%clk 0:01:47]} 30... Kg7 {[%clk
0:02:20.5]} 31. Nf5+ {[%clk 0:01:47.2]} 31... Kg8 {[%clk 0:02:17.8]} 1/2-1/2

[Event "Early-Titled-Tuesday-Blitz-May-07-2024"]
[Site "Chess.com"]
[Date "2024.05.07"]
[Round "11"]
[White "martinmena"]
[Black "NovakRatko"]
[Result "1-0"]
[WhiteElo "2153"]
[BlackElo "2400"]
[TimeControl "180+1"]
[EndTime "10:10:33 PDT"]
[Termination "martinmena won by resignation"]

1. c4 {[%clk 0:03:00.9]} 1... c6 {[%clk 0:02:58.7]} 2. d4 {[%clk 0:02:54.1]}
2... d5 {[%clk 0:02:58.9]} 3. Nf3 {[%clk 0:02:52.4]} 3... f6 {[%clk 0:02:58.4]}
4. Nc3 {[%clk 0:02:45.3]} 4... b6 {[%clk 0:02:57.4]} 5. g3 {[%clk 0:02:35.6]}
5... Bg4 {[%clk 0:02:56.6]} 6. Bg2 {[%clk 0:02:35.7]} 6... e6 {[%clk 0:02:56.7]}
7. h3 {[%clk 0:02:35.6]} 7... Bh5 {[%clk 0:02:56.7]} 8. cxd5 {[%clk 0:02:30.1]}
8... exd5 {[%clk 0:02:51.9]} 9. O-O {[%clk 0:02:23.8]} 9... Bd6 {[%clk
0:02:51.9]} 10. e4 {[%clk 0:02:23.6]} 10... Ne7 {[%clk 0:02:50.2]} 11. g4 {[%clk
0:02:18]} 11... Bf7 {[%clk 0:02:46.1]} 12. e5 {[%clk 0:02:16.8]} 12... fxe5
{[%clk 0:02:46.2]} 13. Nxe5 {[%clk 0:02:17.4]} 13... Bxe5 {[%clk 0:02:41.8]} 14.
dxe5 {[%clk 0:02:18.3]} 14... O-O {[%clk 0:02:42.1]} 15. f4 {[%clk 0:02:15.5]}
15... d4 {[%clk 0:02:38.1]} 16. Ne4 {[%clk 0:02:11.3]} 16... Bc4 {[%clk
0:02:25.6]} 17. Rf2 {[%clk 0:02:10]} 17... c5 {[%clk 0:02:20.9]} 18. Nd6 {[%clk
0:02:05.4]} 18... Bd5 {[%clk 0:02:18.5]} 19. Bxd5+ {[%clk 0:02:05.8]} 19... Nxd5
{[%clk 0:02:17.5]} 20. Qb3 {[%clk 0:02:06.3]} 20... Qd7 {[%clk 0:01:36.3]} 21.
Qxd5+ {[%clk 0:02:05]} 1-0

[Event "Early-Titled-Tuesday-Blitz-May-07-2024"]
[Site "Chess.com"]
[Date "2024.05.07"]
[Round "11"]
[White "toninhojit"]
[Black "thesupera12"]
[Result "1-0"]
[WhiteElo "2597"]
[BlackElo "2475"]
[TimeControl "180+1"]
[EndTime "10:10:44 PDT"]
[Termination "toninhojit won by resignation"]

1. d4 {[%clk 0:03:00.9]} 1... Nf6 {[%clk 0:02:59.7]} 2. c4 {[%clk 0:03:01]} 2...
d5 {[%clk 0:02:58.7]} 3. cxd5 {[%clk 0:03:00.6]} 3... Qxd5 {[%clk 0:02:58.3]} 4.
Nc3 {[%clk 0:03:00.4]} 4... Qa5 {[%clk 0:02:59]} 5. Nf3 {[%clk 0:03:00.2]} 5...
Bg4 {[%clk 0:02:59]} 6. e3 {[%clk 0:03:00.2]} 6... Nc6 {[%clk 0:02:58.9]} 7. Bb5
{[%clk 0:02:56.6]} 7... Bd7 {[%clk 0:02:54.7]} 8. O-O {[%clk 0:02:41.3]} 8... a6
{[%clk 0:02:53.9]} 9. Bc4 {[%clk 0:02:38.4]} 9... Qh5 {[%clk 0:02:48.3]} 10. Be2
{[%clk 0:02:21.6]} 10... Ng4 {[%clk 0:02:28.2]} 11. h3 {[%clk 0:02:19.7]} 11...
Nh6 {[%clk 0:02:24]} 12. Ne5 {[%clk 0:02:17.7]} 12... Qf5 {[%clk 0:02:24.1]} 13.
Nxd7 {[%clk 0:02:17.6]} 13... Qxd7 {[%clk 0:02:23.5]} 14. d5 {[%clk 0:02:11.1]}
14... Ne5 {[%clk 0:02:22.7]} 15. e4 {[%clk 0:02:11.7]} 15... e6 {[%clk
0:02:19.7]} 16. Qb3 {[%clk 0:02:05.9]} 16... O-O-O {[%clk 0:02:17.5]} 17. Rd1
{[%clk 0:02:01.9]} 17... exd5 {[%clk 0:02:14.5]} 18. Nxd5 {[%clk 0:01:57.1]}
18... Bd6 {[%clk 0:02:12.2]} 19. Bxh6 {[%clk 0:01:26.3]} 19... gxh6 {[%clk
0:02:11.5]} 20. f4 {[%clk 0:01:26.6]} 20... Nc6 {[%clk 0:02:07.7]} 21. Bg4
{[%clk 0:01:25.9]} 21... f5 {[%clk 0:02:00.6]} 22. Bxf5 {[%clk 0:01:26.1]} 1-0

[Event "Early-Titled-Tuesday-Blitz-May-07-2024"]
[Site "Chess.com"]
[Date "2024.05.07"]
[Round "11"]
[White "Thjop"]
[Black "ChristopherYoo"]
[Result "0-1"]
[WhiteElo "2628"]
[BlackElo "2995"]
[TimeControl "180+1"]
[EndTime "10:11:34 PDT"]
[Termination "ChristopherYoo won by resignation"]

1. e4 {[%clk 0:03:00.9]} 1... e5 {[%clk 0:02:59.8]} 2. Nf3 {[%clk 0:03:01]} 2...
Nc6 {[%clk 0:03:00.3]} 3. Bb5 {[%clk 0:03:01.1]} 3... a6 {[%clk 0:02:59.5]} 4.
Ba4 {[%clk 0:03:01.5]} 4... Nge7 {[%clk 0:02:59.7]} 5. O-O {[%clk 0:03:01.3]}
5... Ng6 {[%clk 0:02:59.3]} 6. c3 {[%clk 0:02:58.2]} 6... d5 {[%clk 0:02:59.1]}
7. exd5 {[%clk 0:02:54.7]} 7... Qxd5 {[%clk 0:03:00]} 8. d4 {[%clk 0:02:50.4]}
8... Bg4 {[%clk 0:02:59.6]} 9. dxe5 {[%clk 0:02:44.6]} 9... O-O-O {[%clk
0:02:56.1]} 10. Qxd5 {[%clk 0:02:42.3]} 10... Rxd5 {[%clk 0:02:57]} 11. Bxc6
{[%clk 0:02:18.9]} 11... bxc6 {[%clk 0:02:56.7]} 12. Nbd2 {[%clk 0:02:19.5]}
12... Nxe5 {[%clk 0:02:47.4]} 13. Nxe5 {[%clk 0:02:16.5]} 13... Rxe5 {[%clk
0:02:48.3]} 14. Nc4 {[%clk 0:02:11.4]} 14... Re2 {[%clk 0:02:45]} 15. Ne3 {[%clk
0:01:23.6]} 15... Bh5 {[%clk 0:02:42.6]} 16. g4 {[%clk 0:01:13.6]} 16... Bg6
{[%clk 0:02:42]} 17. Rd1 {[%clk 0:01:13.6]} 17... Be4 {[%clk 0:02:40]} 18. Kf1
{[%clk 0:00:55.8]} 18... Bf3 {[%clk 0:02:38.9]} 19. Rd4 {[%clk 0:00:54.9]} 19...
g5 {[%clk 0:02:10.4]} 20. Nc2 {[%clk 0:00:24.8]} 20... Rxc2 {[%clk 0:02:08.9]}
0-1

[Event "Early-Titled-Tuesday-Blitz-May-07-2024"]
[Site "Chess.com"]
[Date "2024.05.07"]
[Round "11"]
[White "Mikhail_Golubev"]
[Black "BeReal24"]
[Result "1-0"]
[WhiteElo "2606"]
[BlackElo "2481"]
[TimeControl "180+1"]
[EndTime "10:11:45 PDT"]
[Termination "Mikhail_Golubev won by resignation"]

1. e4 {[%clk 0:03:00.9]} 1... c5 {[%clk 0:02:59.1]} 2. Nf3 {[%clk 0:03:00.2]}
2... d6 {[%clk 0:02:59.2]} 3. d4 {[%clk 0:03:00.4]} 3... cxd4 {[%clk 0:03:00.1]}
4. Nxd4 {[%clk 0:03:00.7]} 4... Nf6 {[%clk 0:03:00.7]} 5. Nc3 {[%clk 0:03:00.8]}
5... a6 {[%clk 0:03:01.2]} 6. Bc4 {[%clk 0:03:00.7]} 6... e6 {[%clk 0:02:58.8]}
7. O-O {[%clk 0:03:00.2]} 7... b5 {[%clk 0:02:50.1]} 8. Bb3 {[%clk 0:02:59.4]}
8... Nbd7 {[%clk 0:02:50.1]} 9. Re1 {[%clk 0:02:55.6]} 9... Nc5 {[%clk
0:02:48.6]} 10. Bd5 {[%clk 0:02:52.5]} 10... exd5 {[%clk 0:02:40.5]} 11. exd5+
{[%clk 0:02:48.6]} 11... Kd7 {[%clk 0:02:22]} 12. b4 {[%clk 0:02:47.4]} 12...
Na4 {[%clk 0:02:15]} 13. Nxa4 {[%clk 0:02:46.9]} 13... bxa4 {[%clk 0:02:15.9]}
14. c4 {[%clk 0:02:47.1]} 14... Kc7 {[%clk 0:02:13.5]} 15. Qxa4 {[%clk
0:02:17.4]} 15... Bd7 {[%clk 0:02:12.8]} 16. Nc6 {[%clk 0:02:08.4]} 16... Bxc6
{[%clk 0:02:07.6]} 17. dxc6 {[%clk 0:01:44.5]} 17... Be7 {[%clk 0:01:59.5]} 18.
Rb1 {[%clk 0:01:41.3]} 18... Re8 {[%clk 0:01:57]} 19. Be3 {[%clk 0:01:17.7]}
19... Bf8 {[%clk 0:01:41.9]} 20. b5 {[%clk 0:01:05.9]} 20... axb5 {[%clk
0:01:41.1]} 21. Bb6+ {[%clk 0:00:48.6]} 21... Kxc6 {[%clk 0:01:40.3]} 22. Qxb5+
{[%clk 0:00:47.8]} 1-0

[Event "Early-Titled-Tuesday-Blitz-May-07-2024"]
[Site "Chess.com"]
[Date "2024.05.07"]
[Round "11"]
[White "Aminazinas"]
[Black "andrzej"]
[Result "1-0"]
[WhiteElo "2633"]
[BlackElo "2465"]
[TimeControl "180+1"]
[EndTime "10:11:57 PDT"]
[Termination "Aminazinas won by checkmate"]

1. e4 {[%clk 0:03:00.9]} 1... d5 {[%clk 0:03:00.9]} 2. exd5 {[%clk 0:03:00.1]}
2... Qxd5 {[%clk 0:03:00.5]} 3. Nc3 {[%clk 0:03:00.1]} 3... Qa5 {[%clk
0:03:00.9]} 4. d4 {[%clk 0:03:00.2]} 4... Nf6 {[%clk 0:03:00.9]} 5. Nf3 {[%clk
0:02:59.6]} 5... c6 {[%clk 0:03:00.1]} 6. Bc4 {[%clk 0:02:59.4]} 6... Bf5 {[%clk
0:02:58.4]} 7. Bd2 {[%clk 0:02:53.8]} 7... e6 {[%clk 0:02:58.1]} 8. d5 {[%clk
0:02:48.4]} 8... cxd5 {[%clk 0:02:42.1]} 9. Nxd5 {[%clk 0:02:49.3]} 9... Qd8
{[%clk 0:02:42.3]} 10. Nxf6+ {[%clk 0:02:45.7]} 10... gxf6 {[%clk 0:02:34.9]}
11. Bc3 {[%clk 0:02:40.3]} 11... Qxd1+ {[%clk 0:02:27.4]} 12. Rxd1 {[%clk
0:02:36.6]} 12... Be7 {[%clk 0:02:26.9]} 13. Nd4 {[%clk 0:02:29.8]} 13... Bg6
{[%clk 0:02:22.3]} 14. O-O {[%clk 0:02:24.3]} 14... a6 {[%clk 0:02:21.6]} 15.
Rfe1 {[%clk 0:02:10.3]} 15... O-O {[%clk 0:02:06.3]} 16. Nxe6 {[%clk 0:02:05.4]}
16... fxe6 {[%clk 0:02:03]} 17. Rxe6 {[%clk 0:02:06.3]} 17... Bf7 {[%clk
0:02:03.2]} 18. Rxe7 {[%clk 0:01:40.9]} 18... Bxc4 {[%clk 0:02:03.4]} 19. Rd4
{[%clk 0:01:40.7]} 19... Nc6 {[%clk 0:01:52.4]} 20. Rg4+ {[%clk 0:01:40.1]}
20... Kh8 {[%clk 0:01:52.4]} 21. Rxb7 {[%clk 0:01:40.1]} 21... Bd5 {[%clk
0:01:29.8]} 22. Rgg7 {[%clk 0:01:31]} 22... Be4 {[%clk 0:01:29.9]} 23. f3 {[%clk
0:01:25.8]} 23... Bxc2 {[%clk 0:01:29.8]} 24. Rgc7 {[%clk 0:01:17.4]} 24... Rac8
{[%clk 0:01:20.9]} 25. Bxf6+ {[%clk 0:01:16.5]} 25... Kg8 {[%clk 0:01:13.4]} 26.
Rg7+ {[%clk 0:01:16]} 26... Kh8 {[%clk 0:01:13.7]} 27. Rxh7+ {[%clk 0:01:14.3]}
27... Kg8 {[%clk 0:01:13.3]} 28. Rh8# {[%clk 0:01:14.3]} 1-0

[Event "Early-Titled-Tuesday-Blitz-May-07-2024"]
[Site "Chess.com"]
[Date "2024.05.07"]
[Round "11"]
[White "MarlonJodar"]
[Black "Aisen1011"]
[Result "0-1"]
[WhiteElo "2275"]
[BlackElo "2459"]
[TimeControl "180+1"]
[EndTime "10:12:13 PDT"]
[Termination "Aisen1011 won by resignation"]

1. e4 {[%clk 0:02:54.5]} 1... d5 {[%clk 0:02:55.5]} 2. exd5 {[%clk 0:02:54.3]}
2... Qxd5 {[%clk 0:02:55.6]} 3. Nc3 {[%clk 0:02:54]} 3... Qe5+ {[%clk
0:02:55.8]} 4. Be2 {[%clk 0:02:52.4]} 4... Bg4 {[%clk 0:02:56.1]} 5. d4 {[%clk
0:02:49.7]} 5... Bxe2 {[%clk 0:02:57]} 6. Ngxe2 {[%clk 0:02:49.5]} 6... Qa5
{[%clk 0:02:57.4]} 7. O-O {[%clk 0:02:49]} 7... Nf6 {[%clk 0:02:57]} 8. Bf4
{[%clk 0:02:48.4]} 8... Nc6 {[%clk 0:02:57.1]} 9. a3 {[%clk 0:02:43.3]} 9...
O-O-O {[%clk 0:02:57]} 10. b4 {[%clk 0:02:43]} 10... Qf5 {[%clk 0:02:57.3]} 11.
Be3 {[%clk 0:02:26.3]} 11... e5 {[%clk 0:02:57]} 12. d5 {[%clk 0:02:19.4]} 12...
Ne7 {[%clk 0:02:56.3]} 13. Ng3 {[%clk 0:02:01.3]} 13... Qg6 {[%clk 0:02:55.8]}
14. Qe2 {[%clk 0:01:55]} 14... Nexd5 {[%clk 0:02:49.5]} 15. Nxd5 {[%clk
0:01:55.6]} 15... Nxd5 {[%clk 0:02:50.4]} 16. Bxa7 {[%clk 0:01:55.9]} 16... Bd6
{[%clk 0:02:46]} 17. Qc4 {[%clk 0:01:14.2]} 17... Nf4 {[%clk 0:02:41]} 18. Be3
{[%clk 0:01:11]} 18... h5 {[%clk 0:02:12.1]} 19. Bxf4 {[%clk 0:00:58.6]} 19...
exf4 {[%clk 0:02:13]} 20. Ne4 {[%clk 0:00:58.4]} 20... f3 {[%clk 0:02:13.5]} 21.
g3 {[%clk 0:00:50.6]} 21... Qg4 {[%clk 0:02:02.7]} 22. Nxd6+ {[%clk 0:00:49.7]}
22... Rxd6 {[%clk 0:02:03.6]} 23. Qxf7 {[%clk 0:00:17.3]} 23... Rf6 {[%clk
0:02:03.6]} 24. Qd5 {[%clk 0:00:07.9]} 24... Qh3 {[%clk 0:02:02.1]} 0-1

[Event "Early-Titled-Tuesday-Blitz-May-07-2024"]
[Site "Chess.com"]
[Date "2024.05.07"]
[Round "11"]
[White "tantaan"]
[Black "Iskusnyh"]
[Result "1-0"]
[WhiteElo "2498"]
[BlackElo "2574"]
[TimeControl "180+1"]
[EndTime "10:12:14 PDT"]
[Termination "tantaan won by checkmate"]

1. e4 {[%clk 0:03:00.9]} 1... e6 {[%clk 0:02:58.7]} 2. d4 {[%clk 0:02:58.2]}
2... d5 {[%clk 0:02:57.7]} 3. Nc3 {[%clk 0:02:58.1]} 3... Nf6 {[%clk 0:02:55.8]}
4. e5 {[%clk 0:02:58.2]} 4... Nfd7 {[%clk 0:02:54.5]} 5. f4 {[%clk 0:02:58.6]}
5... c5 {[%clk 0:02:52.7]} 6. Nf3 {[%clk 0:02:58.7]} 6... Nc6 {[%clk 0:02:50.8]}
7. Be3 {[%clk 0:02:59]} 7... a6 {[%clk 0:02:46.9]} 8. Qd2 {[%clk 0:02:45.2]}
8... b5 {[%clk 0:02:45.9]} 9. Nd1 {[%clk 0:02:45.5]} 9... Be7 {[%clk 0:02:43.7]}
10. c3 {[%clk 0:02:42.4]} 10... O-O {[%clk 0:02:36]} 11. Bd3 {[%clk 0:02:41.6]}
11... b4 {[%clk 0:02:35.9]} 12. O-O {[%clk 0:02:38.6]} 12... a5 {[%clk
0:02:35.1]} 13. f5 {[%clk 0:02:38.6]} 13... exf5 {[%clk 0:02:30.6]} 14. Bxf5
{[%clk 0:02:37.6]} 14... Nb6 {[%clk 0:02:09.4]} 15. Bxc8 {[%clk 0:02:29.3]}
15... Rxc8 {[%clk 0:02:03.7]} 16. dxc5 {[%clk 0:02:28]} 16... Nc4 {[%clk
0:02:00.2]} 17. Qd3 {[%clk 0:02:23]} 17... N6xe5 {[%clk 0:01:52.4]} 18. Nxe5
{[%clk 0:02:21.5]} 18... Nxe5 {[%clk 0:01:52.2]} 19. Qf5 {[%clk 0:02:17.1]}
19... Nc4 {[%clk 0:01:45.6]} 20. Bd4 {[%clk 0:02:15.9]} 20... Bxc5 {[%clk
0:01:43.5]} 21. Bxc5 {[%clk 0:02:08.2]} 21... Rxc5 {[%clk 0:01:42.8]} 22. cxb4
{[%clk 0:02:00.6]} 22... axb4 {[%clk 0:01:40.8]} 23. b3 {[%clk 0:01:57.2]} 23...
Nd2 {[%clk 0:01:25.2]} 24. Rf4 {[%clk 0:01:52.5]} 24... Ne4 {[%clk 0:01:22.7]}
25. Ne3 {[%clk 0:01:42.8]} 25... g6 {[%clk 0:01:21.5]} 26. Qe5 {[%clk
0:01:23.9]} 26... Nc3 {[%clk 0:01:05.9]} 27. Ng4 {[%clk 0:01:17]} 27... f5
{[%clk 0:01:00.2]} 28. Nh6# {[%clk 0:01:11.3]} 1-0

[Event "Early-Titled-Tuesday-Blitz-May-07-2024"]
[Site "Chess.com"]
[Date "2024.05.07"]
[Round "11"]
[White "Nemegejas"]
[Black "Evan_Attaker"]
[Result "1-0"]
[WhiteElo "2819"]
[BlackElo "2630"]
[TimeControl "180+1"]
[EndTime "10:12:20 PDT"]
[Termination "Nemegejas won by checkmate"]

1. d4 {[%clk 0:03:00.9]} 1... c5 {[%clk 0:02:24.1]} 2. dxc5 {[%clk 0:02:57.7]}
2... e6 {[%clk 0:02:23.2]} 3. Nd2 {[%clk 0:02:57.5]} 3... Bxc5 {[%clk
0:02:22.9]} 4. Ne4 {[%clk 0:02:58.1]} 4... Be7 {[%clk 0:02:22.1]} 5. Nd6+ {[%clk
0:02:58.2]} 5... Bxd6 {[%clk 0:02:22.7]} 6. Qxd6 {[%clk 0:02:59.1]} 6... Ne7
{[%clk 0:02:21.9]} 7. e4 {[%clk 0:02:58.4]} 7... Nbc6 {[%clk 0:02:16.6]} 8. Nf3
{[%clk 0:02:58.7]} 8... Qa5+ {[%clk 0:02:13.7]} 9. Bd2 {[%clk 0:02:57.9]} 9...
Qb6 {[%clk 0:02:14.2]} 10. Bc3 {[%clk 0:02:57]} 10... O-O {[%clk 0:02:14]} 11.
Bd3 {[%clk 0:02:55.1]} 11... Ng6 {[%clk 0:02:14]} 12. h4 {[%clk 0:02:52.7]}
12... Nce7 {[%clk 0:02:12.5]} 13. Qg3 {[%clk 0:02:51.6]} 13... f6 {[%clk
0:02:00.8]} 14. h5 {[%clk 0:02:51.6]} 14... Nh8 {[%clk 0:02:01.5]} 15. O-O-O
{[%clk 0:02:18]} 15... Qc5 {[%clk 0:01:50.8]} 16. Nd4 {[%clk 0:01:56]} 16...
Qg5+ {[%clk 0:01:32.9]} 17. Qxg5 {[%clk 0:01:54.1]} 17... fxg5 {[%clk
0:01:33.8]} 18. Bb4 {[%clk 0:01:48.7]} 18... Re8 {[%clk 0:01:30.9]} 19. Nb5
{[%clk 0:01:47.1]} 19... Nc6 {[%clk 0:01:15.9]} 20. Bc3 {[%clk 0:01:43.5]} 20...
Rf8 {[%clk 0:01:12.1]} 21. h6 {[%clk 0:01:43.5]} 21... g6 {[%clk 0:01:07.4]} 22.
Bg7 {[%clk 0:01:32.3]} 22... Rxf2 {[%clk 0:00:56.2]} 23. Rdf1 {[%clk 0:01:31.9]}
23... Rxf1+ {[%clk 0:00:55.8]} 24. Rxf1 {[%clk 0:01:32.8]} 24... Nf7 {[%clk
0:00:56.1]} 25. Nd6 {[%clk 0:01:33.4]} 25... Ncd8 {[%clk 0:00:56.7]} 26. Ne8
{[%clk 0:01:24]} 26... Nxh6 {[%clk 0:00:42.1]} 27. Rf8# {[%clk 0:01:22.2]} 1-0

[Event "Early-Titled-Tuesday-Blitz-May-07-2024"]
[Site "Chess.com"]
[Date "2024.05.07"]
[Round "11"]
[White "AnaKuchava"]
[Black "jinxy2009"]
[Result "0-1"]
[WhiteElo "2196"]
[BlackElo "2276"]
[TimeControl "180+1"]
[EndTime "10:12:21 PDT"]
[Termination "jinxy2009 won by resignation"]

1. d4 {[%clk 0:03:00.9]} 1... Nf6 {[%clk 0:02:50.2]} 2. Nf3 {[%clk 0:02:59]}
2... g6 {[%clk 0:02:50]} 3. c4 {[%clk 0:02:53.4]} 3... Bg7 {[%clk 0:02:50.3]} 4.
Nc3 {[%clk 0:02:52.7]} 4... d5 {[%clk 0:02:50.3]} 5. Bg5 {[%clk 0:02:49.6]} 5...
Ne4 {[%clk 0:02:47.9]} 6. Bf4 {[%clk 0:02:49.4]} 6... Nxc3 {[%clk 0:02:47.1]} 7.
bxc3 {[%clk 0:02:47.4]} 7... c5 {[%clk 0:02:47.8]} 8. e3 {[%clk 0:02:41.9]} 8...
cxd4 {[%clk 0:02:47.7]} 9. cxd4 {[%clk 0:02:40.8]} 9... Nc6 {[%clk 0:02:48.3]}
10. cxd5 {[%clk 0:02:40.1]} 10... Qxd5 {[%clk 0:02:49.2]} 11. Be2 {[%clk
0:02:40.7]} 11... O-O {[%clk 0:02:48.5]} 12. O-O {[%clk 0:02:41.3]} 12... Bf5
{[%clk 0:02:49]} 13. Qa4 {[%clk 0:02:37.4]} 13... Rfd8 {[%clk 0:02:49.4]} 14.
Rfc1 {[%clk 0:02:32.4]} 14... Qa5 {[%clk 0:02:49.6]} 15. Qb3 {[%clk 0:02:31]}
15... Qb4 {[%clk 0:02:41.5]} 16. Bc4 {[%clk 0:02:23.3]} 16... Qxb3 {[%clk
0:02:39.9]} 17. axb3 {[%clk 0:02:24.2]} 17... Rac8 {[%clk 0:02:39.4]} 18. h3
{[%clk 0:01:30.4]} 18... a6 {[%clk 0:02:23.2]} 19. g4 {[%clk 0:01:13]} 19... Be4
{[%clk 0:02:21.6]} 20. Nd2 {[%clk 0:01:12.5]} 20... Bd5 {[%clk 0:02:21.9]} 21.
Kf1 {[%clk 0:00:59]} 21... Bxc4+ {[%clk 0:02:20.7]} 22. bxc4 {[%clk 0:00:58.4]}
22... e6 {[%clk 0:02:21.4]} 23. Rcb1 {[%clk 0:00:46.4]} 23... e5 {[%clk
0:02:20.1]} 24. Bg3 {[%clk 0:00:39.4]} 24... exd4 {[%clk 0:02:19.7]} 25. Rxb7
{[%clk 0:00:38.8]} 25... dxe3 {[%clk 0:02:18.8]} 26. Ne4 {[%clk 0:00:38.6]}
26... exf2 {[%clk 0:02:17.9]} 27. Nd6 {[%clk 0:00:37.5]} 27... Bxa1 {[%clk
0:02:16.7]} 28. Nxc8 {[%clk 0:00:35.4]} 28... Rxc8 {[%clk 0:02:12.5]} 29. Kxf2
{[%clk 0:00:31.6]} 29... Bd4+ {[%clk 0:02:12.3]} 30. Kf3 {[%clk 0:00:28.2]}
30... a5 {[%clk 0:02:12.2]} 31. Bd6 {[%clk 0:00:22.9]} 31... a4 {[%clk
0:02:11.8]} 32. Rb5 {[%clk 0:00:19.3]} 32... Ra8 {[%clk 0:02:10.2]} 33. Ba3
{[%clk 0:00:17.8]} 33... Bg7 {[%clk 0:02:07.6]} 34. Ke4 {[%clk 0:00:16.3]} 34...
Bf8 {[%clk 0:02:07.5]} 35. Kd5 {[%clk 0:00:15]} 35... Bxa3 {[%clk 0:02:07]} 0-1

[Event "Early-Titled-Tuesday-Blitz-May-07-2024"]
[Site "Chess.com"]
[Date "2024.05.07"]
[Round "11"]
[White "C_K_G"]
[Black "th3d4rkness"]
[Result "0-1"]
[WhiteElo "2276"]
[BlackElo "2224"]
[TimeControl "180+1"]
[EndTime "10:12:24 PDT"]
[Termination "th3d4rkness won on time"]

1. e4 {[%clk 0:03:00.9]} 1... c5 {[%clk 0:02:59.4]} 2. Nf3 {[%clk 0:02:51.5]}
2... Nc6 {[%clk 0:02:58.9]} 3. d4 {[%clk 0:02:42.9]} 3... cxd4 {[%clk
0:02:58.6]} 4. Nxd4 {[%clk 0:02:42.2]} 4... Nf6 {[%clk 0:02:59.1]} 5. Nc3 {[%clk
0:02:29.2]} 5... e5 {[%clk 0:02:58.5]} 6. Ndb5 {[%clk 0:02:17.8]} 6... d6 {[%clk
0:02:58.4]} 7. Bg5 {[%clk 0:02:16.2]} 7... a6 {[%clk 0:02:58.3]} 8. Na3 {[%clk
0:02:16.2]} 8... b5 {[%clk 0:02:57.9]} 9. Nd5 {[%clk 0:02:16.7]} 9... Qa5+
{[%clk 0:02:57]} 10. c3 {[%clk 0:02:15]} 10... Nxe4 {[%clk 0:02:56.1]} 11. Be3
{[%clk 0:01:56.6]} 11... Rb8 {[%clk 0:02:55.7]} 12. Qf3 {[%clk 0:01:35.1]} 12...
f5 {[%clk 0:02:51.5]} 13. Bd3 {[%clk 0:01:30.5]} 13... b4 {[%clk 0:02:51.3]} 14.
Bxe4 {[%clk 0:01:03.4]} 14... fxe4 {[%clk 0:02:42.5]} 15. Qh5+ {[%clk
0:00:50.9]} 15... g6 {[%clk 0:02:42.1]} 16. Nf6+ {[%clk 0:00:49.3]} 16... Kf7
{[%clk 0:02:40.5]} 17. Qh4 {[%clk 0:00:17.2]} 17... bxa3 {[%clk 0:02:38.5]} 18.
O-O {[%clk 0:00:15.2]} 18... axb2 {[%clk 0:02:35.8]} 19. Rab1 {[%clk 0:00:13.4]}
19... Be7 {[%clk 0:02:35]} 20. Bg5 {[%clk 0:00:12.7]} 20... h6 {[%clk
0:02:29.9]} 21. Qxe4 {[%clk 0:00:06.7]} 21... Bf5 {[%clk 0:02:11.8]} 22. Qxc6
{[%clk 0:00:06.3]} 22... hxg5 {[%clk 0:02:07.7]} 23. Nd5 {[%clk 0:00:03.6]}
23... Rhc8 {[%clk 0:02:00.4]} 24. Nxe7 {[%clk 0:00:00.3]} 24... Kxe7 {[%clk
0:01:56.7]} 0-1